{"text_format":"1","workbook":"xlsx","n_sheets":5,"sheets":["iFAi ","Lançamentos","Resumo Mensal","Categorias","Sobre iFAi"],"not_rendered":{"charts":0,"images":2,"macros":1,"external_links":0,"defined_names":0,"comments":0,"pivot_tables":0},"unopened":[],"bounds":{"document_bytes":16777216,"sheet_cells":100000,"rows_first":2000,"rows_last":500,"rows_between":2000,"halvings":0,"cell_chars":16384,"cell_head_chars":4096},"cells_cut":0,"cells_raw":0,"read":"whole","date_system":"1900"}

{"sheet":"iFAi ","index":0,"n_rows":0,"n_cols":0,"rows_kept":0,"cut":false,"hidden":false,"merged":[]}

{"sheet":"Lançamentos","index":1,"n_rows":3,"n_cols":7,"rows_kept":3,"cut":false,"hidden":false,"merged":[]}
["Data","Descrição","Categoria","Tipo (Entrada/Saída)","Valor (R$)","Forma de Pagamento","Observações"]
["2025-01-14","pg Funcionario","Serviços","Entrada",1200,"Pix","Test"]
["2025-01-01","teste","Aluguel","Saída",200,"Cartão","fdsaf"]

{"sheet":"Resumo Mensal","index":2,"n_rows":13,"n_cols":7,"rows_kept":13,"cut":false,"hidden":false,"merged":[[1,6,2,6]]}
["Mês/Ano","Total Entradas (R$)","Total Saídas (R$)","Resultado (R$)",null,null,"Preencha o Ano"]
[{"$f":"DATE($G$2, 1, 1)","v":"2025-01-01"},{"$f":"SUMIFS(\n  Lançamentos!E:E,\n  Lançamentos!D:D,\"Entrada\",\n  Lançamentos!A:A,\">=\"&DATE(YEAR(A2),MONTH(A2),1),\n  Lançamentos!A:A,\"<=\"&EOMONTH(A2,0)\n)","v":1200},{"$f":"SUMIFS(\n  Lançamentos!E:E,\n  Lançamentos!D:D,\"Saída\",\n  Lançamentos!A:A,\">=\"&DATE(YEAR(A2),MONTH(A2),1),\n  Lançamentos!A:A,\"<=\"&EOMONTH(A2,0)\n)","v":200},{"$f":"B2-C2","v":1000},null,null,2025]
[{"$f":"EDATE(A2, 1)","v":"2025-02-01"},{"$f":"SUMIFS(\n  Lançamentos!E:E,\n  Lançamentos!D:D,\"Entrada\",\n  Lançamentos!A:A,\">=\"&DATE(YEAR(A3),MONTH(A3),1),\n  Lançamentos!A:A,\"<=\"&EOMONTH(A3,0)\n)","v":0},{"$f":"SUMIFS(\n  Lançamentos!E:E,\n  Lançamentos!D:D,\"Saída\",\n  Lançamentos!A:A,\">=\"&DATE(YEAR(A3),MONTH(A3),1),\n  Lançamentos!A:A,\"<=\"&EOMONTH(A3,0)\n)","v":0},{"$f":"B3-C3","v":0}]
[{"$f":"EDATE(A3, 1)","v":"2025-03-01"},{"$f":"SUMIFS(\n  Lançamentos!E:E,\n  Lançamentos!D:D,\"Entrada\",\n  Lançamentos!A:A,\">=\"&DATE(YEAR(A4),MONTH(A4),1),\n  Lançamentos!A:A,\"<=\"&EOMONTH(A4,0)\n)","v":0},{"$f":"SUMIFS(\n  Lançamentos!E:E,\n  Lançamentos!D:D,\"Saída\",\n  Lançamentos!A:A,\">=\"&DATE(YEAR(A4),MONTH(A4),1),\n  Lançamentos!A:A,\"<=\"&EOMONTH(A4,0)\n)","v":0},{"$f":"B4-C4","v":0}]
["2025-04-01",{"$f":"SUMIFS(\n  Lançamentos!E:E,\n  Lançamentos!D:D,\"Entrada\",\n  Lançamentos!A:A,\">=\"&DATE(YEAR(A5),MONTH(A5),1),\n  Lançamentos!A:A,\"<=\"&EOMONTH(A5,0)\n)","v":0},{"$f":"SUMIFS(\n  Lançamentos!E:E,\n  Lançamentos!D:D,\"Saída\",\n  Lançamentos!A:A,\">=\"&DATE(YEAR(A5),MONTH(A5),1),\n  Lançamentos!A:A,\"<=\"&EOMONTH(A5,0)\n)","v":0},0]
["2025-05-01",{"$f":"SUMIFS(\n  Lançamentos!E:E,\n  Lançamentos!D:D,\"Entrada\",\n  Lançamentos!A:A,\">=\"&DATE(YEAR(A6),MONTH(A6),1),\n  Lançamentos!A:A,\"<=\"&EOMONTH(A6,0)\n)","v":0},{"$f":"SUMIFS(\n  Lançamentos!E:E,\n  Lançamentos!D:D,\"Saída\",\n  Lançamentos!A:A,\">=\"&DATE(YEAR(A6),MONTH(A6),1),\n  Lançamentos!A:A,\"<\"&DATE(YEAR(A6),MONTH(A6)+1,1)\n)","v":0},0]
["2025-06-01",{"$f":"SUMIFS(\n  Lançamentos!E:E,\n  Lançamentos!D:D,\"Entrada\",\n  Lançamentos!A:A,\">=\"&DATE(YEAR(A7),MONTH(A7),1),\n  Lançamentos!A:A,\"<=\"&EOMONTH(A7,0)\n)","v":0},{"$f":"SUMIFS(\n  Lançamentos!E:E,\n  Lançamentos!D:D,\"Saída\",\n  Lançamentos!A:A,\">=\"&DATE(YEAR(A7),MONTH(A7),1),\n  Lançamentos!A:A,\"<\"&DATE(YEAR(A7),MONTH(A7)+1,1)\n)","v":0},0]
["2025-07-01",{"$f":"SUMIFS(\n  Lançamentos!E:E,\n  Lançamentos!D:D,\"Entrada\",\n  Lançamentos!A:A,\">=\"&DATE(YEAR(A8),MONTH(A8),1),\n  Lançamentos!A:A,\"<\"&DATE(YEAR(A8),MONTH(A8)+1,1)\n)","v":0},{"$f":"SUMIFS(\n  Lançamentos!E:E,\n  Lançamentos!D:D,\"Saída\",\n  Lançamentos!A:A,\">=\"&DATE(YEAR(A8),MONTH(A8),1),\n  Lançamentos!A:A,\"<\"&DATE(YEAR(A8),MONTH(A8)+1,1)\n)","v":0},0]
["2025-08-01",{"$f":"SUMIFS(\n  Lançamentos!E:E,\n  Lançamentos!D:D,\"Entrada\",\n  Lançamentos!A:A,\">=\"&DATE(YEAR(A9),MONTH(A9),1),\n  Lançamentos!A:A,\"<\"&DATE(YEAR(A9),MONTH(A9)+1,1)\n)","v":0},{"$f":"SUMIFS(\n  Lançamentos!E:E,\n  Lançamentos!D:D,\"Saída\",\n  Lançamentos!A:A,\">=\"&DATE(YEAR(A9),MONTH(A9),1),\n  Lançamentos!A:A,\"<\"&DATE(YEAR(A9),MONTH(A9)+1,1)\n)","v":0},0]
["2025-09-01",{"$f":"SUMIFS(\n  Lançamentos!E:E,\n  Lançamentos!D:D,\"Entrada\",\n  Lançamentos!A:A,\">=\"&DATE(YEAR(A10),MONTH(A10),1),\n  Lançamentos!A:A,\"<\"&DATE(YEAR(A10),MONTH(A10)+1,1)\n)","v":0},{"$f":"SUMIFS(\n  Lançamentos!E:E,\n  Lançamentos!D:D,\"Saída\",\n  Lançamentos!A:A,\">=\"&DATE(YEAR(A10),MONTH(A10),1),\n  Lançamentos!A:A,\"<\"&DATE(YEAR(A10),MONTH(A10)+1,1)\n)","v":0},0]
["2025-10-01",{"$f":"SUMIFS(\n  Lançamentos!E:E,\n  Lançamentos!D:D,\"Entrada\",\n  Lançamentos!A:A,\">=\"&DATE(YEAR(A11),MONTH(A11),1),\n  Lançamentos!A:A,\"<\"&DATE(YEAR(A11),MONTH(A11)+1,1)\n)","v":0},{"$f":"SUMIFS(\n  Lançamentos!E:E,\n  Lançamentos!D:D,\"Saída\",\n  Lançamentos!A:A,\">=\"&DATE(YEAR(A11),MONTH(A11),1),\n  Lançamentos!A:A,\"<\"&DATE(YEAR(A11),MONTH(A11)+1,1)\n)","v":0},0]
["2025-11-01",{"$f":"SUMIFS(\n  Lançamentos!E:E,\n  Lançamentos!D:D,\"Entrada\",\n  Lançamentos!A:A,\">=\"&DATE(YEAR(A12),MONTH(A12),1),\n  Lançamentos!A:A,\"<\"&DATE(YEAR(A12),MONTH(A12)+1,1)\n)","v":0},{"$f":"SUMIFS(\n  Lançamentos!E:E,\n  Lançamentos!D:D,\"Saída\",\n  Lançamentos!A:A,\">=\"&DATE(YEAR(A12),MONTH(A12),1),\n  Lançamentos!A:A,\"<\"&DATE(YEAR(A12),MONTH(A12)+1,1)\n)","v":0},0]
["2025-12-01",{"$f":"SUMIFS(\n  Lançamentos!E:E,\n  Lançamentos!D:D,\"Entrada\",\n  Lançamentos!A:A,\">=\"&DATE(YEAR(A13),MONTH(A13),1),\n  Lançamentos!A:A,\"<\"&DATE(YEAR(A13),MONTH(A13)+1,1)\n)","v":0},{"$f":"SUMIFS(\n  Lançamentos!E:E,\n  Lançamentos!D:D,\"Saída\",\n  Lançamentos!A:A,\">=\"&DATE(YEAR(A13),MONTH(A13),1),\n  Lançamentos!A:A,\"<\"&DATE(YEAR(A13),MONTH(A13)+1,1)\n)","v":0},0]

{"sheet":"Categorias","index":3,"n_rows":8,"n_cols":1,"rows_kept":8,"cut":false,"hidden":false,"merged":[]}
["Categoria"]
["Vendas"]
["Serviços"]
["Aluguel"]
["Impostos"]
["Marketing"]
["Salários"]
["Outros"]

{"sheet":"Sobre iFAi","index":4,"n_rows":0,"n_cols":0,"rows_kept":0,"cut":false,"hidden":false,"merged":[]}